bitfinex/quotes_ETHUSD_20230701
["timestamp","ask_amount","ask_price","bid_price","bid_amount"]
[1688252470905,13.07579184,1925.3,1924.8,11.74252]
[1688252471408,13.07579184,1925.3,1924.8,13.29612]
[1688252471409,7.88165184,1925.3,1924.8,13.29612]
[1688252471582,7.88165184,1925.3,1924.9,6.524482]
[1688252471969,7.88165184,1925.3,1924.9,11.719552]
[1688252472204,2.68752184,1925.3,1924.9,11.719552]
[1688252474182,7.88155184,1925.3,1924.9,11.719552]
[1688252478575,2.68752184,1925.3,1924.9,14.317082]
[1688252478871,2.68752184,1925.3,1925.0,11.8210482]
[1688252479496,8.81826,1925.4,1925.0,14.4184482]
[1688252479676,11.50578184,1925.4,1925.0,14.4184482]
[1688252480786,5.60303336,1925.6,1925.0,14.4184482]
[1688252481000,6.85766,1925.5,1925.2,5.19413]
[1688252481211,5.19346,1925.5,1925.2,5.19413]
[1688252482119,10.38692,1925.5,1925.2,10.38839]
[1688252488335,5.19346,1925.5,1925.2,10.38839]
[1688252488631,5.19346,1925.5,1925.2,11.98779948]
[1688252491641,10.38692,1925.5,1925.2,11.98779948]
[1688252492121,16.86500184,1925.6,1925.2,11.98779948]
[1688252493937,19.46159184,1925.6,1925.2,10.38839]
[1688252501756,16.86500184,1925.6,1925.2,10.38839]
[1688252509985,11.67167184,1925.6,1925.2,10.38839]
[1688252510152,3.7909,1925.6,1925.2,10.38839]
[1688252510463,12.51312,1925.6,1925.2,10.38839]
[1688252510640,12.51312,1925.6,1925.3,6.232759]
[1688252511238,10.38639,1925.6,1925.3,6.232759]
[1688252511443,12.98298,1925.6,1925.2,10.38823]
[1688252511642,14.91938,1925.6,1925.3,5.19397]
[1688252512749,14.91938,1925.6,1925.2,10.38815]
[1688252517170,14.91938,1925.6,1925.2,5.19407]
[1688252518867,12.98298,1925.6,1925.2,10.38833]
[1688252519182,10.38636,1925.6,1925.3,6.232793]
[1688252521853,10.38636,1925.6,1925.3,11.426783]
[1688252525297,5.19318,1925.6,1925.3,12.778783]
[1688252526293,10.38636,1925.6,1925.3,12.778783]
[1688252527094,5.19318,1925.6,1925.3,12.778783]
[1688252527291,5.19318,1925.6,1925.4,6.4715083]
[1688252528084,10.38636,1925.6,1925.4,6.4715083]
[1688252528683,5.19318,1925.6,1925.4,11.6652283]
[1688252542282,5.19304,1925.7,1925.4,13.0172283]
[1688252542713,8.92336,1925.8,1925.4,15.6140883]
[1688252543010,8.92336,1925.8,1925.5,11.94805883]
[1688252543400,3.7306,1925.8,1925.5,11.94805883]
[1688252543821,8.92324,1925.8,1925.5,11.94805883]
[1688252543982,3.7306,1925.8,1925.5,14.54477883]
[1688252544377,8.92325,1925.8,1925.5,14.54477883]
[1688252550518,5.19265,1925.8,1925.5,14.54477883]
[1688252559595,5.19265,1925.8,1925.5,12.98337]
[1688252560527,12.00732,1925.9,1925.5,12.98337]
[1688252560700,9.50226184,1925.9,1925.5,12.98337]
[1688252562717,14.69480184,1925.9,1925.5,12.98337]
[1688252562900,14.69480184,1925.9,1925.5,10.38665]
[1688252563103,1.46948018,1925.8,1925.5,10.38665]
[1688252563411,6.66224018,1925.8,1925.5,10.38665]
[1688252563815,6.66224018,1925.8,1925.5,5.19322]
[1688252564031,11.85500018,1925.8,1925.5,10.38667]
[1688252566438,10.38552,1925.8,1925.5,10.38667]
[1688252571545,5.19276,1925.8,1925.5,10.38667]
[1688252580260,9.50226184,1925.9,1925.5,10.38667]
[1688252580471,9.50223184,1925.9,1925.5,10.38667]
[1688252582351,7.25014,1926.0,1925.5,12.98339]
[1688252582352,7.25016,1926.0,1925.5,12.98339]
[1688252582576,16.80211184,1926.0,1925.5,14.762559]
[1688252583135,16.80211184,1926.0,1925.5,16.415759]
[1688252585665,16.80211184,1926.0,1925.5,14.762559]
[1688252586173,16.80211184,1926.0,1925.5,16.356659]
[1688252590556,11.60978184,1926.0,1925.5,16.356659]
[1688252590959,2.0579,1926.0,1925.6,1.6356659]
[1688252591193,2.0579,1926.0,1925.7,10.38572]
[1688252594302,7.25001,1926.0,1925.7,10.38572]
[1688252595069,2.0579,1926.0,1925.7,10.38572]
[1688252597601,11.9417,1926.1,1925.7,10.38572]
[1688252597910,14.62922184,1926.1,1925.7,10.38572]
[1688252600304,16.52751533,1926.1,1925.7,10.38572]
[1688252604419,11.33550533,1926.1,1925.7,10.38572]
[1688252607420,6.74969,1926.1,1925.7,10.38572]
[1688252607823,11.94152,1926.1,1925.7,10.38572]
[1688252608118,6.74963,1926.1,1925.7,10.38572]
[1688252613136,11.94146,1926.1,1925.7,10.38572]
[1688252613300,2.68752184,1926.0,1925.3,1.352]
[1688252613497,2.68752184,1926.0,1925.3,10.38781]
[1688252613498,12.98167,1925.8,1925.3,10.38781]
[1688252613742,12.98167,1925.8,1925.2,5.59711]
[1688252613743,15.66919184,1925.8,1925.2,9.83055]
[1688252613898,15.66919184,1925.8,1925.2,6.83055]
[1688252614098,1.56691918,1925.7,1925.2,12.02481]
[1688252614298,10.38659,1925.6,1925.2,12.02481]
[1688252615545,10.38659,1925.6,1925.2,14.62194]
[1688252616230,5.19327,1925.6,1925.2,14.62194]
[1688252616399,14.03439,1925.7,1925.2,14.62194]
[1688252616606,14.03439,1925.7,1925.2,16.85648848]
[1688252632643,14.03439,1925.7,1925.2,18.20848848]
[1688252633204,3.6483,1925.7,1925.2,18.20848848]
[1688252633450,5.19279,1925.8,1925.2,18.20848848]
[1688252633605,12.04741,1925.8,1925.3,1.352]
[1688252633811,12.04741,1925.8,1925.4,10.38718]
[1688252634012,12.04741,1925.8,1925.4,11.820788]
[1688252649085,14.64373,1925.8,1925.4,11.820788]
[1688252655584,14.64373,1925.8,1925.4,10.38718]
[1688252702801,17.33125184,1925.8,1925.2,6.54614]
[1688252703072,17.33125184,1925.8,1925.2,5.19414]
[1688252703573,17.33125184,1925.8,1925.2,10.3884]
[1688252704949,1.5832,1925.7,1925.2,10.3884]
[1688252705150,10.38664,1925.6,1925.2,12.284535]
[1688252720237,12.08244,1925.6,1925.2,12.284535]
[1688252732884,12.08244,1925.6,1925.2,14.881665]
[1688252733566,6.88912,1925.6,1925.2,14.881665]
[1688252739639,12.08244,1925.6,1925.2,14.881665]
[1688252743158,14.68333,1925.6,1925.1,4.6267]
[1688252743467,14.68333,1925.6,1925.1,10.38889]
[1688252743670,14.68333,1925.6,1925.1,5.19436]
[1688252744543,14.68333,1925.6,1925.1,10.38889]
[1688252744744,16.489313,1925.6,1925.1,5.19436]
[1688252745747,16.489313,1925.6,1925.1,10.38889]
[1688252746441,16.489313,1925.6,1925.1,12.98615]
[1688252747604,16.489313,1925.6,1925.1,14.60265]
[1688252748601,16.489313,1925.6,1925.1,12.98615]
[1688252751977,16.489313,1925.6,1924.9,10.80514073]
[1688252751978,4.33645314,1925.5,1924.9,10.80514073]
[1688252752177,12.98485,1925.4,1925.0,5.1948]
[1688252752769,14.65145,1925.4,1925.0,5.1948]
[1688252753465,16.76290031,1925.4,1925.0,5.1948]
[1688252762340,14.65145,1925.4,1925.0,10.3896]
[1688252771323,14.65145,1925.4,1925.0,5.1948]
[1688252773956,14.65145,1925.4,1925.0,10.3896]
[1688252774344,12.98485,1925.4,1925.0,10.3896]
[1688252775159,12.98485,1925.4,1925.0,5.1948]
[1688252775336,16.65499031,1925.4,1925.0,5.1948]
[1688252782165,14.55335,1925.4,1925.0,5.1948]
[1688252782361,14.55335,1925.4,1925.0,10.3896]
[1688252785064,14.55335,1925.4,1925.0,5.1948]
[1688252787059,14.55335,1925.4,1925.0,10.3896]
[1688252794138,14.55335,1925.4,1925.0,5.1948]
[1688252798258,16.65499031,1925.4,1924.9,6.77882]
[1688252798577,16.65499031,1925.4,1924.8,3.66274094]
[1688252798578,16.65499031,1925.4,1924.8,3.2505]
[1688252798785,19.34251215,1925.4,1924.8,4.8869]
[1688252798973,1.93425122,1925.3,1924.8,13.37891]
[1688252799172,10.3888,1925.2,1924.8,13.37891]
[1688252803247,5.1944,1925.2,1924.8,13.37891]
[1688252806058,10.3888,1925.2,1924.8,11.74251]
[1688252808109,5.1944,1925.2,1924.8,14.34018]
[1688252812505,5.1944,1925.2,1924.8,12.98818]
[1688252812709,5.1944,1925.2,1924.8,14.91343101]
[1688252822018,6.762,1925.2,1924.8,14.91343101]
[1688252822451,10.3888,1925.2,1924.8,12.98818]
[1688252822600,10.3888,1925.2,1924.3,2.597]
[1688252822601,1.352,1925.1,1924.3,2.597]
[1688252822806,1.352,1925.1,1924.5,1.5968]
[1688252822807,5.19509,1924.9,1924.5,1.5968]
[1688252823113,6.234091,1924.9,1924.5,1.5968]
[1688252823303,10.39018,1924.9,1924.4,12.9908]
[1688252823503,10.39018,1924.9,1924.4,14.3428]
[1688252823705,12.98771,1924.9,1924.4,11.74459]
[1688252823947,10.39018,1924.9,1924.4,14.3428]
[1688252824309,10.39018,1924.9,1924.4,15.9396]
[1688252824506,10.39018,1924.9,1924.6,5.19583]
[1688252826273,12.98771,1924.9,1924.6,5.19583]
[1688252827978,0.01654914,1924.8,1924.4,1.5968]
[1688252828161,10.39148,1924.7,1924.3,7.02639]
[1688252828367,12.08088,1924.7,1924.2,6.84057]
[1688252828540,12.08088,1924.7,1924.2,8.600135]
[1688252828938,14.06908,1924.7,1924.2,8.600135]
[1688252829166,14.06908,1924.7,1924.2,9.01426405]
[1688252830273,14.06908,1924.7,1924.2,14.21122405]
[1688252839365,1.406908,1924.6,1924.2,0.41412905]
[1688252839694,10.39236,1924.5,1924.1,6.3553]
[1688252839986,5.19616,1924.5,1924.1,6.3553]
[1688252840162,5.19616,1924.5,1924.1,6.76099919]
[1688252840366,5.19616,1924.5,1924.1,11.95822919]
[1688252840695,6.83306,1924.5,1924.1,13.31022919]
[1688252841091,10.39232,1924.5,1924.1,13.31022919]
[1688252841292,5.19616,1924.5,1924.1,15.31022919]
[1688252841495,5.19616,1924.5,1924.1,20.50745919]
[1688252841696,6.83306,1924.5,1924.1,20.50745919]
[1688252841887,12.02922,1924.5,1924.1,15.31022919]
[1688252844311,12.02922,1924.5,1924.1,17.37384087]
[1688252844708,12.02922,1924.5,1924.1,22.57107087]
[1688252845115,12.02922,1924.5,1924.1,21.21907087]
[1688252847705,12.02922,1924.5,1924.1,23.81768087]
[1688252849039,12.02922,1924.5,1924.1,21.21907087]
[1688252852840,12.02922,1924.5,1924.1,16.02184087]
[1688252867886,15.67791184,1924.5,1924.0,5.1975]
[1688252868064,20.65761184,1924.5,1923.9,5.30547543]
[1688252868261,20.65761184,1924.5,1923.9,3.69557543]
[1688252868262,12.99205,1924.3,1923.9,3.69557543]
[1688252868475,12.99205,1924.3,1923.8,1.9457]
[1688252868676,10.39473,1924.1,1923.7,4.23271401]
[1688252868879,10.39473,1924.1,1923.8,0.90315301]
[1688252869071,12.99334,1924.1,1923.8,0.90315301]
[1688252869498,10.39473,1924.1,1923.8,0.90315301]
[1688252869698,10.39473,1924.1,1923.7,9.3104622]
[1688252869971,5.19736,1924.1,1923.7,9.3104222]
[1688252870466,5.19736,1924.1,1923.7,14.5087322]
[1688252870904,5.19736,1924.1,1923.7,17.1078822]
[1688252871105,12.07626914,1924.2,1923.7,19.50264772]
[1688252871271,6.87913914,1924.2,1923.7,19.50264772]
[1688252872711,12.07621914,1924.2,1923.7,19.50264772]
[1688252877925,14.67469914,1924.2,1923.7,19.50264772]
[1688252893743,1.9642,1924.3,1923.8,1.26961559]
[1688252893744,7.16098,1924.3,1923.8,1.26961559]
[1688252894050,10.79898396,1924.5,1923.9,12.99423]
[1688252894209,5.19652,1924.4,1923.9,14.65553]
[1688252894545,5.19652,1924.4,1924.1,5.19718]
[1688252894731,10.39304,1924.4,1924.1,5.19718]
[1688252903914,12.99125,1924.4,1924.1,5.19718]
[1688252904413,12.99125,1924.4,1924.0,10.39465]
[1688252904840,14.67665,1924.4,1924.0,5.19726]
[1688252905436,14.67665,1924.4,1923.9,6.85894]
[1688252905950,16.77415,1924.4,1923.9,6.85894]
[1688252908755,18.6264024,1924.4,1923.9,6.80894]
[1688252914179,18.6264024,1924.4,1923.8,7.01767]
[1688252914322,2.68752184,1924.3,1923.9,0.90315124]
[1688252914525,12.99271,1924.2,1923.8,5.19802]
[1688252914749,14.56073318,1924.2,1923.9,0.90315303]
[1688252915756,14.56073318,1924.2,1923.8,5.19795]
[1688252915956,20.23695502,1924.2,1923.7,0.62281401]
[1688252916127,1.352,1924.1,1923.8,0.90318481]
[1688252916327,15.68127184,1924.0,1923.7,0.08074098]
[1688252923243,17.03127184,1924.0,1923.7,0.08074098]
[1688252923632,1.352,1923.9,1923.7,0.08074098]
[1688252923866,12.9951,1923.8,1923.7,0.08074098]
[1688252924165,14.56312318,1923.8,1923.7,0.08074098]
[1688252924881,11.96410318,1923.8,1923.7,0.08074098]
[1688252931252,14.56312318,1923.8,1923.7,0.08074098]
[1688252937746,17.25064502,1923.8,1923.7,0.08074098]
[1688252985441,14.65162502,1923.8,1923.7,0.08074098]
[1688252985739,12.9951,1923.8,1923.7,0.08074098]
[1688253053389,13.42073732,1923.8,1923.7,0.08074098]
[1688253086514,16.10825916,1923.8,1923.7,0.08074098]
[1688253086722,23.40225916,1923.8,1923.7,0.08074098]
[1688253086927,23.40225916,1923.8,1923.0,0.1]
[1688253087117,12.65624776,1923.7,1923.0,0.1]
[1688253087312,20.79551,1923.5,1923.0,0.1]
[1688253087489,2.68752184,1923.4,1923.0,0.1]
[1688253087694,12.99862,1923.3,1923.0,0.1]
[1688253088113,13.01516914,1923.3,1923.0,0.1]
[1688253088335,14.34460671,1923.3,1923.0,0.1]
[1688253089424,17.03212855,1923.3,1923.0,0.1]
[1688253094314,2.68752184,1923.2,1923.0,0.1]
[1688253094519,15.59978,1923.1,1923.0,0.1]
[1688253094722,18.28730184,1923.1,1923.0,0.1]
[1688253094915,20.11603202,1923.1,1923.0,0.1]
[1688253095115,17.51607202,1923.1,1923.0,0.1]
[1688253098401,17.53262116,1923.1,1923.0,0.1]
[1688253111118,17.94057131,1923.1,1923.0,0.1]
[1688253117526,17.53262116,1923.1,1923.0,0.1]
[1688253123834,18.01262116,1923.1,1923.0,0.1]
[1688253148907,12.81269116,1923.1,1923.0,0.1]
[1688253149262,18.01262116,1923.1,1923.0,0.1]
[1688253153462,18.01262116,1923.1,1923.0,0.1574788]
[1688253160005,5.61419671,1923.2,1923.0,6.7096788]
[1688253160205,5.19975,1923.2,1923.0,5.3576788]
[1688253160404,5.19975,1923.2,1923.0,0.1574788]
[1688253160568,5.19975,1923.2,1923.0,0.70326368]
[1688253160975,12.99935,1923.2,1923.0,0.70326368]
[1688253161178,12.99935,1923.2,1923.0,2.05526368]
[1688253161484,12.99935,1923.2,1923.0,1.5094788]
[1688253163005,15.68687184,1923.2,1923.0,1.5094788]
[1688253165301,15.68687184,1923.2,1923.0,0.1574788]
[1688253166416,10.39952,1923.2,1923.1,1.352]
[1688253166600,5.19975,1923.2,1923.1,1.352]
[1688253167106,10.39952,1923.2,1923.1,1.352]
[1688253167311,5.19975,1923.2,1923.1,2.02296788]
[1688253167512,5.19975,1923.2,1923.1,1.4094788]
[1688253167914,10.39941,1923.2,1923.1,1.4094788]
[1688253168087,5.19966,1923.2,1923.1,1.4094788]
[1688253168887,10.39932,1923.2,1923.1,1.4094788]
[1688253172002,12.99915,1923.2,1923.1,1.4094788]
[1688253174321,12.99915,1923.2,1923.1,0.0574788]
[1688253180659,22.48843805,1923.2,1923.1,0.0574788]
[1688253180818,17.76877805,1923.2,1923.1,0.0574788]
[1688253184247,17.78532719,1923.2,1923.1,0.0574788]
[1688253186209,17.78532719,1923.2,1923.1,0.0074788]
[1688253195120,23.24732719,1923.2,1923.1,0.0074788]
[1688253235915,24.28223371,1923.2,1923.1,0.0074788]
[1688253252155,24.28223371,1923.2,1923.1,0.00455437]
[1688253252725,23.24732719,1923.2,1923.1,0.00455437]
[1688253287287,16.16667184,1923.2,1923.1,0.00455437]
[1688253287458,15.68667184,1923.2,1923.1,0.00455437]
[1688253288978,12.99915,1923.2,1923.1,0.00455437]
[1688253289178,10.39932,1923.2,1923.1,1.35655437]
[1688253289405,12.99915,1923.2,1923.1,1.35655437]
[1688253300118,12.99915,1923.2,1923.1,0.00455437]
[1688253304370,17.72656084,1923.2,1923.1,0.00455437]
[1688253306556,16.16667184,1923.2,1923.1,0.00455437]
[1688253306792,15.68667184,1923.2,1923.1,0.00455437]
[1688253307152,12.99915,1923.2,1923.1,0.00455437]
[1688253311805,5.19966,1923.2,1923.1,1.35655437]
[1688253312005,5.19925,1923.4,1923.1,6.55648437]
[1688253312212,12.9974,1923.5,1923.2,0.65564844]
[1688253312777,12.9974,1923.5,1923.3,1.349]
[1688253314579,2.68752184,1923.4,1923.2,0.00455437]
[1688253314888,15.59816,1923.3,1923.2,0.00455437]
[1688253315092,18.76568184,1923.3,1923.2,0.00455437]
[1688253319413,20.64390494,1923.3,1923.2,0.00455437]
[1688253322308,18.76568184,1923.3,1923.2,0.00455437]
[1688253329109,15.68599184,1923.3,1923.2,0.00455437]
[1688253329291,12.99847,1923.3,1923.2,0.00455437]
[1688253333138,10.39878,1923.3,1923.2,0.00455437]
[1688253333503,12.99847,1923.3,1923.2,0.00455437]
[1688253373163,12.99847,1923.3,1923.2,0.42170441]
[1688253373347,12.99847,1923.3,1923.2,0.00455437]
[1688253374186,5.19939,1923.3,1923.2,0.00455437]
[1688253374576,5.19939,1923.3,1923.2,5.72464181]
[1688253374777,5.19939,1923.3,1923.2,0.52498181]
[1688253375083,5.19939,1923.3,1923.2,5.72464181]
[1688253378374,5.19939,1923.3,1923.2,0.52498181]
[1688253379291,5.19939,1923.3,1923.2,0.47498181]
[1688253387102,5.19939,1923.3,1923.2,0.88935477]
[1688253390502,5.19939,1923.3,1923.2,0.47498181]
[1688253390872,5.19939,1923.3,1923.1,5.19972]
[1688253391988,5.19939,1923.3,1923.1,5.60614106]
[1688253397575,5.19939,1923.3,1923.1,5.19972]
[1688253397775,10.39878,1923.3,1923.1,5.19972]
[1688253398812,5.19939,1923.3,1923.1,5.19972]
[1688253404536,5.19939,1923.3,1923.1,6.547557]
[1688253409498,5.19939,1923.3,1923.1,5.19972]
[1688253415639,5.19939,1923.3,1923.0,13.47874]
[1688253415843,5.19939,1923.3,1923.1,0.90350439]
[1688253416415,5.19939,1923.3,1923.1,6.10339439]
[1688253416730,5.19939,1923.3,1923.1,10.39982]
[1688253416929,5.19939,1923.3,1923.1,11.747662]
[1688253417307,5.19939,1923.3,1923.1,6.547732]
[1688253418139,5.19939,1923.3,1923.1,5.19989]
[1688253419136,12.99847,1923.3,1923.0,5.84211303]
[1688253419375,12.99847,1923.3,1923.1,0.90350348]
[1688253419922,12.99847,1923.3,1923.0,5.30004]
[1688253420104,10.39878,1923.3,1923.0,0.1]
[1688253420308,11.869638,1923.3,1923.0,0.1]
[1688253421249,11.869638,1923.3,1923.0,5.30012]
[1688253421545,10.39878,1923.3,1923.0,5.30012]
[1688253422648,10.39878,1923.3,1923.0,5.25012]
[1688253432633,10.39878,1923.3,1923.0,10.45032]
[1688253434757,5.19939,1923.3,1923.0,5.25012]
[1688253435655,10.39878,1923.3,1923.0,5.25012]
[1688253440841,14.469328,1923.3,1923.0,0.05]
[1688253441282,2.68752184,1923.2,1923.0,0.05]
[1688253441496,12.99982,1923.1,1923.0,0.05]
[1688253441777,15.68734184,1923.1,1923.0,0.05]
[1688253441940,19.37803702,1923.1,1923.0,0.05]
[1688253444436,18.03603702,1923.1,1923.0,0.05]
[1688253451659,18.51603702,1923.1,1923.0,0.05]
[1688253452058,19.85803702,1923.1,1923.0,0.05]
[1688253454376,19.85803702,1923.1,1922.9,0.1]
[1688253454377,25.32903702,1923.1,1922.9,0.1]
[1688253454560,6.50532554,1923.0,1922.9,0.1]
[1688253454873,20.00582554,1923.0,1922.9,0.1]
[1688253456376,20.00582554,1923.0,1922.4,0.1]
[1688253456377,26.82882554,1923.0,1922.4,0.1]
[1688253456555,1.342,1922.6,1922.4,0.1]
[1688253456870,13.0039,1922.5,1922.4,0.1]
[1688253460952,10.40312,1922.5,1922.4,0.1]
[1688253463450,13.0039,1922.5,1922.4,0.1]
[1688253470615,10.40312,1922.5,1922.4,0.1]
[1688253470762,5.2014,1922.6,1922.4,0.1]
[1688253470959,5.20156,1922.5,1922.4,0.640194]
[1688253471297,10.40312,1922.5,1922.4,0.640194]
[1688253476005,10.40312,1922.5,1922.4,1.992194]
[1688253480264,10.40312,1922.5,1922.4,0.640194]
[1688253480986,13.0039,1922.5,1922.4,0.1]
[1688253481481,10.40312,1922.5,1922.4,0.1]
[1688253481924,5.20156,1922.5,1922.4,0.1]
[1688253482195,5.20146,1922.6,1922.4,0.1]
[1688253482394,5.20156,1922.5,1922.4,0.1]
[1688253482915,10.40312,1922.5,1922.4,0.1]
[1688253503545,5.20156,1922.5,1922.4,0.1]
[1688253506045,5.20142,1922.6,1922.4,0.1]
[1688253507918,2.0745,1922.9,1922.4,6.4164233]
[1688253508151,5.20022,1923.0,1922.5,0.90378619]
[1688253508463,10.40098,1922.9,1922.6,10.40241]
[1688253508680,10.40098,1922.9,1922.7,1.040241]
[1688253508875,10.40098,1922.9,1922.7,6.241201]
[1688253509937,5.20049,1922.9,1922.7,6.241201]
[1688253510821,5.20049,1922.9,1922.7,11.442211]
[1688253515051,5.19947,1923.3,1922.8,1.339]
[1688253515361,5.19947,1923.3,1922.9,13.00085]
[1688253515544,5.19947,1923.3,1923.1,5.19993]
[1688253516027,5.19947,1923.3,1923.1,6.55193]
[1688253517067,10.39851,1923.4,1923.1,11.75186]
[1688253517271,1.6602,1923.5,1923.1,14.35182]
[1688253517272,6.85917,1923.5,1923.1,14.35182]
[1688253517573,6.85917,1923.5,1923.2,11.834252]
[1688253517574,12.05818,1923.5,1923.2,11.834252]
[1688253519246,6.85917,1923.5,1923.2,14.434082]
[1688253519445,1.6602,1923.5,1923.2,14.434082]
[1688253520066,1.6602,1923.5,1923.2,11.834252]
[1688253520268,6.85923,1923.5,1923.2,11.834252]
[1688253520475,6.85923,1923.5,1923.2,14.434082]
[1688253520680,6.85923,1923.5,1923.2,11.834252]
[1688253521259,12.05826,1923.5,1923.3,1.1834252]
[1688253521463,12.05826,1923.5,1923.3,5.19935]
[1688253521772,10.39806,1923.5,1923.3,5.19935]
[1688253523276,10.39806,1923.5,1923.2,6.634612]
[1688253524283,5.19903,1923.5,1923.2,6.634612]
[1688253524490,4.38906203,1923.8,1923.4,1.339]
[1688253524491,0.42144289,1923.8,1923.4,1.339]
[1688253524732,8.90605,1923.9,1923.5,10.3976]
[1688253525220,8.90605,1923.9,1923.5,11.7496]
[1688253525791,3.7082,1923.9,1923.5,11.7496]
[1688253526003,1.7086,1923.9,1923.5,11.7496]
[1688253526223,10.3953,1924.0,1923.5,11.7496]
[1688253526224,5.19773,1924.0,1923.7,5.19818]
[1688253526603,12.99423,1924.0,1923.6,10.39683]
[1688253538423,10.39548,1924.0,1923.6,10.39683]
[1688253538942,5.19773,1924.0,1923.6,12.99612]
[1688253539128,8.80097,1924.1,1923.6,14.34812]
[1688253539328,13.99838,1924.1,1923.7,1.434812]
[1688253539534,13.99838,1924.1,1923.8,10.39602]
[1688253540356,7.18957,1924.1,1923.8,10.39602]
[1688253540730,7.18957,1924.1,1923.8,12.99504]
[1688253540731,1.9923,1924.1,1923.8,12.99504]
[1688253540942,7.18957,1924.1,1923.8,14.4380252]
[1688253541820,1.9923,1924.1,1923.8,14.4380252]
[1688253542456,7.18956,1924.1,1923.8,14.4380252]
[1688253542651,6.88758,1924.2,1923.8,14.4380252]
[1688253542853,5.19677,1924.3,1923.8,14.4380252]
[1688253543058,5.19672,1924.3,1923.9,1.44380252]
[1688253543259,10.39344,1924.3,1924.0,5.19749]
[1688253543755,2.6,1924.1,1923.8,6.6409052]
[1688253543942,2.6,1924.1,1923.6,9.6624]
[1688253544147,10.3952,1924.0,1923.7,5.1981]
[1688253544455,10.3952,1924.0,1923.6,6.79426]
[1688253544655,10.3952,1924.0,1923.6,11.99273]
[1688253548924,7.29093,1924.1,1923.6,14.59202]
[1688253548925,9.88961,1924.1,1923.6,14.59202]
[1688253549122,4.6923,1924.1,1923.7,2.811202]
[1688253549322,2.6,1924.1,1923.8,12.99497]
[1688253555489,2.6,1924.1,1923.8,14.34697]
[1688253555664,2.6,1924.1,1923.9,1.434697]
[1688253555985,2.6,1924.1,1924.0,5.1975]
[1688253559588,7.79723,1924.1,1924.0,5.1975]
[1688253559752,2.6,1924.1,1924.0,5.1975]
[1688253560067,7.79723,1924.1,1924.0,5.1975]
[1688253560398,7.79723,1924.1,1924.0,6.3804827]
[1688253563588,7.79723,1924.1,1924.0,5.1975]
[1688253565290,7.79723,1924.1,1923.9,11.829967]
[1688253567992,2.6,1924.1,1923.9,11.829967]
[1688253568496,2.6,1924.1,1923.9,14.428847]
[1688253578988,2.6,1924.1,1923.9,15.780847]
[1688253579193,2.6,1924.1,1924.0,1.5780847]
[1688253579497,2.6,1924.1,1924.0,11.9730847]
[1688253581007,2.6,1924.1,1924.0,14.5718347]
[1688253582375,2.6,1924.1,1924.0,11.9730847]
[1688253586408,2.6,1924.1,1923.9,1.352]
[1688253586612,7.79723,1924.1,1923.8,5.19794]
[1688253586776,7.79723,1924.1,1923.8,10.39588]
[1688253589580,7.79723,1924.1,1923.8,12.9949]
[1688253590917,7.79723,1924.1,1923.8,10.39588]
[1688253594320,7.79723,1924.1,1923.8,12.03640037]
[1688253595924,2.6,1924.1,1923.8,12.03640037]
[1688253600117,7.79724,1924.1,1923.8,12.03640037]
[1688253602033,12.99448,1924.1,1923.7,8.60838369]
[1688253602191,14.54228,1924.1,1923.7,3.41019369]
[1688253602710,14.54228,1924.1,1923.7,8.60843369]
[1688253607347,14.54228,1924.1,1923.7,13.80674369]
[1688253607551,14.54228,1924.1,1923.8,11.77650437]
[1688253612738,2.6,1924.1,1923.8,14.37552437]
[1688253616133,2.6,1924.1,1923.8,15.72752437]
[1688253616440,2.6,1924.1,1924.0,1.352]
[1688253616605,2.6,1924.1,1924.0,14.34575]
[1688253616935,2.6,1924.1,1924.0,16.080325]
[1688253617101,2.6,1924.1,1924.0,14.728325]
[1688253632222,2.6,1924.1,1924.0,16.080325]
[1688253632423,2.6,1924.1,1924.0,14.728325]
[1688253633860,2.6,1924.1,1924.0,16.067325]
[1688253637068,2.6,1924.1,1924.0,19.067325]
[1688253637863,2.6,1924.1,1924.0,26.95234684]
[1688253638024,5.19488,1925.0,1924.2,2.0]
[1688253638232,8.93278,1925.0,1924.5,12.99017]
[1688253638534,14.12769,1925.0,1924.7,5.19556]
[1688253639861,16.72509,1925.0,1924.7,5.19556]
[1688253645063,16.72509,1925.0,1924.7,10.39117]
[1688253650567,16.72509,1925.0,1924.7,5.19556]
[1688253651739,16.72509,1925.0,1924.4,3.0]
[1688253651740,4.03952184,1924.9,1924.4,3.0]
[1688253652077,14.34065,1924.8,1924.3,10.39321]
[1688253652279,18.03955,1924.8,1924.3,5.1966]
[1688253652569,18.03955,1924.8,1924.3,6.535939]
[1688253652985,18.03955,1924.8,1924.3,11.732629]
[1688253654856,3.94943,1925.0,1924.3,14.330969]
[1688253655055,5.19537,1924.8,1924.3,15.863169]
[1688253655235,5.19537,1924.8,1924.4,1.5863169]
[1688253655569,5.19537,1924.8,1924.5,12.99026]
[1688253657764,5.19534,1924.8,1924.4,1.5863169]
[1688253657970,10.39069,1924.8,1924.3,13.264709]
[1688253658164,14.02339,1924.8,1924.3,13.264709]
[1688253660347,16.62106,1924.8,1924.3,6.535919]
[1688253661142,16.62106,1924.8,1924.2,3.0]
[1688253661143,12.99,1924.6,1924.2,3.0]
[1688253661383,12.99,1924.6,1924.1,3.0]
[1688253661557,12.99,1924.6,1924.0,6.931995]
[1688253661558,15.67752184,1924.6,1924.0,1.734575]
[1688253661753,10.39328,1924.4,1924.0,5.19749]
[1688253661986,12.99149,1924.4,1923.9,10.39541]
[1688253662169,12.99149,1924.4,1923.9,5.19764]
[1688253663257,12.99149,1924.4,1924.0,3.0]
[1688253663456,12.99149,1924.4,1924.0,8.1975]
[1688253663660,12.99149,1924.4,1924.0,3.0]
[1688253664497,12.99149,1924.4,1924.0,13.39494]